bitfinex/quotes_ETHUSD_20260308
["timestamp","ask_amount","ask_price","bid_price","bid_amount"]
[1772975367208,0.001,1941.4,1941.2,1.93974458]
[1772975367727,0.001,1941.6,1941.2,1.93974458]
[1772975368028,0.001,1941.6,1941.3,1.93974458]
[1772975369928,0.001,1941.6,1941.4,1.93974458]
[1772975371334,0.001,1941.5,1941.4,1.93974458]
[1772975372831,0.001,1941.5,1941.4,3.22747508]
[1772975373040,0.001,1941.7,1941.5,1.93866722]
[1772975373400,0.001,1941.7,1941.4,3.22639183]
[1772975373602,1.92014132,1941.7,1941.4,3.22639183]
[1772975374130,0.001,1941.7,1941.5,1.93866722]
[1772975375331,0.001,1941.7,1941.6,1.93866722]
[1772975375536,0.001,1941.8,1941.5,1.28765142]
[1772975375537,1.92014132,1941.9,1941.5,1.28765142]
[1772975375701,1.92014132,1941.9,1941.5,2.68665142]
[1772975375902,0.001,1941.9,1941.6,1.93866722]
[1772975377311,0.001,1941.9,1941.7,1.28753154]
[1772975377508,0.001,1941.9,1941.8,1.93866722]
[1772975378824,0.001,1941.9,1941.7,1.28753154]
[1772975379229,0.001,1941.9,1941.8,1.93866722]
[1772975379425,1.92014132,1942.6,1942.1,1.93866722]
[1772975379618,1.92014132,1942.6,1942.0,1.28733264]
[1772975379619,1.92014132,1942.6,1942.3,1.93866722]
[1772975380436,1.91914132,1942.5,1942.2,1.4]
[1772975381445,1.91914132,1942.4,1942.2,1.4]
[1772975381830,3.20709171,1942.6,1942.2,4.62586194]
[1772975382037,3.20709171,1942.6,1942.2,3.33866722]
[1772975383111,1.92014132,1942.6,1942.3,1.93866722]
[1772975383347,0.001,1942.5,1942.3,1.93866722]
[1772975384661,0.001,1942.5,1942.3,3.22579034]
[1772975387505,0.001,1942.5,1942.3,1.93866722]
[1772975387766,0.001,1942.5,1942.4,1.93866722]
[1772975388383,1.92014132,1942.5,1942.2,1.93866722]
[1772975388729,1.92014132,1942.5,1942.1,4.6279292]
[1772975389352,1.92014132,1942.5,1942.1,1.93866722]
[1772975389662,1.92014132,1942.5,1942.2,1.403]
[1772975392768,0.001,1942.5,1942.2,2.69019024]
[1772975393081,0.001,1942.5,1942.3,1.93866722]
[1772975393266,1.92014132,1942.5,1942.2,4.62885746]
[1772975393777,1.92014132,1942.5,1942.2,3.34166722]
[1772975394075,0.001,1942.5,1942.3,1.93866722]
[1772975395537,0.001,1942.4,1942.3,1.93866722]
[1772975398986,0.001,1942.6,1942.4,1.93866722]
[1772975400768,1.92014132,1942.6,1942.2,1.407]
[1772975400963,1.91914132,1942.5,1942.2,2.69418437]
[1772975401163,1.91914132,1942.5,1942.2,1.407]
[1772975401486,1.91914132,1942.5,1942.1,1.28836101]
[1772975401667,1.91914132,1942.5,1942.2,1.407]
[1772975401865,1.91914132,1942.5,1942.1,0.0011]
[1772975402188,1.91914132,1942.5,1941.8,1.4041]
[1772975403183,1.28706754,1942.4,1941.8,1.4041]
[1772975403389,1.89936255,1942.3,1941.8,0.0011]
[1772975403591,1.89936255,1942.3,1941.5,0.0011]
[1772975404766,1.89936255,1942.3,1941.5,1.85430069]
[1772975404978,1.89936255,1942.3,1941.6,1.85320069]
[1772975405689,3.18511864,1942.2,1941.7,1.85320069]
[1772975407703,3.18511864,1942.2,1941.8,1.85320069]
[1772975408201,1.89791856,1942.1,1941.8,0.0011]
[1772975411206,1.28733264,1942.0,1941.8,0.0011]
[1772975411698,3.1852284,1942.1,1941.8,0.0011]
[1772975411902,3.1852284,1942.1,1941.8,1.85430069]
[1772975413907,1.89791856,1942.3,1941.8,1.85430069]
[1772975416005,3.18511864,1942.2,1941.8,1.85430069]
[1772975417410,0.001,1942.4,1941.9,1.85320069]
[1772975417875,1.28793573,1942.6,1941.9,1.85320069]
[1772975418073,0.001,1942.6,1942.0,1.28733264]
[1772975418303,0.001,1942.6,1942.1,1.85320069]
[1772975418507,0.001,1942.6,1942.3,1.85320069]
[1772975418809,0.001,1942.6,1941.8,5.15083046]
[1772975418810,1.89891856,1942.6,1941.8,4.5407613]
[1772975419179,1.89891856,1942.6,1941.9,1.85320069]
[1772975419881,1.89891856,1942.6,1941.9,1.85430069]
[1772975420081,1.89891856,1942.4,1941.9,0.0011]
[1772975422718,1.89791856,1942.2,1941.9,0.0011]
[1772975424915,3.18516657,1942.2,1941.9,0.0011]
[1772975426713,1.89791856,1942.1,1941.9,0.0011]
[1772975428413,1.89791856,1942.3,1941.9,1.85430069]
[1772975428709,3.18507623,1942.3,1941.9,1.85430069]
[1772975428903,1.89791856,1942.2,1941.9,1.85430069]
[1772975429512,0.001,1942.4,1941.9,1.85430069]
[1772975430032,1.28808033,1942.4,1941.9,1.85430069]
[1772975430190,1.89791856,1942.3,1941.9,1.85430069]
[1772975430717,2.50282189,1942.3,1941.9,3.14169559]
[1772975430890,2.50282189,1942.3,1942.0,1.85320069]
[1772975431610,1.28810207,1942.4,1942.0,1.85320069]
[1772975431990,1.28810207,1942.4,1942.0,1.85430069]
[1772975432189,0.001,1942.3,1942.0,1.85430069]
[1772975433018,0.001,1942.3,1942.0,3.14162579]
[1772975433186,0.001,1942.3,1942.0,1.85430069]
[1772975434620,1.80030286,1942.3,1942.0,1.85430069]
[1772975435093,0.001,1942.3,1942.1,1.28726636]
[1772975435288,0.001,1942.3,1942.0,1.7273679]
[1772975438443,0.001,1942.3,1942.0,3.01469027]
[1772975438747,0.001,1942.3,1942.0,1.7273679]
[1772975438945,0.001,1942.3,1942.0,3.01469564]
[1772975439244,0.001,1942.3,1942.1,1.7262679]
[1772975441141,0.001,1942.4,1942.2,1.7262679]
[1772975441350,0.001,1942.6,1942.2,1.7262679]
[1772975441351,1.80030286,1942.6,1942.2,1.7262679]
[1772975444850,3.0872907,1942.6,1942.2,1.7262679]
[1772975445149,0.001,1942.5,1942.2,3.01346491]
[1772975445447,0.001,1942.5,1942.2,1.7262679]
[1772975446244,1.80030286,1942.5,1942.1,0.0011]
[1772975448631,3.0863704,1942.4,1942.1,0.0011]
[1772975448950,1.79930286,1942.4,1942.1,0.0011]
[1772975449131,1.79930286,1942.4,1942.1,1.7273679]
[1772975449950,3.08730605,1942.5,1942.1,1.7273679]
[1772975451157,1.80030286,1942.5,1942.1,3.01460847]
[1772975451352,0.001,1942.5,1942.2,1.7262679]
[1772975451656,1.28800779,1942.5,1942.2,1.7262679]
[1772975452253,0.001,1942.5,1942.2,1.7262679]
[1772975453118,0.001,1942.5,1942.3,1.7262679]
[1772975455354,0.001,1942.5,1942.3,3.01339681]
[1772975455557,1.80030286,1942.5,1942.1,1.28836024]
[1772975455856,0.001,1942.5,1942.2,1.7262679]
[1772975456036,1.80030286,1942.5,1942.2,1.7262679]
[1772975456231,1.80030286,1942.5,1942.1,1.7273679]
[1772975456452,1.80030286,1942.5,1942.1,3.1323679]
[1772975456653,1.80030286,1942.5,1942.1,4.41960544]
[1772975457358,3.0873629,1942.5,1942.2,0.0011]
[1772975457656,1.80030286,1942.4,1942.2,0.0011]
[1772975460457,0.001,1942.4,1942.2,1.7273679]
[1772975462985,0.001,1942.6,1942.4,1.74362107]
[1772975463534,1.28674132,1942.9,1942.5,1.74362107]
[1772975463743,1.72847146,1942.8,1942.2,0.0011]
[1772975463946,1.72847146,1942.8,1942.2,1.28829799]
[1772975464447,1.72847146,1942.8,1942.2,3.13932682]
[1772975464673,1.85632643,1942.6,1942.2,3.13932682]
[1772975467773,1.85632643,1942.6,1942.2,1.85212883]
[1772975467962,3.14329949,1942.6,1942.2,3.13930941]
[1772975468270,1.85632643,1942.6,1942.2,3.13930941]
[1772975469953,1.85632643,1942.6,1942.3,0.0011]
[1772975470153,0.001,1942.5,1942.3,0.0011]
[1772975471276,1.85732643,1942.5,1942.3,0.0011]
[1772975474977,0.001,1942.5,1942.3,1.85212883]
[1772975476978,0.001,1942.5,1942.3,3.13924097]
[1772975477596,0.001,1942.5,1942.3,1.85212883]
[1772975478045,0.001,1942.5,1942.3,3.13925958]
[1772975480477,0.001,1942.5,1942.3,1.28823075]
[1772975480669,0.001,1942.5,1942.4,1.85102883]
[1772975481571,1.28684851,1942.8,1942.4,1.85102883]
[1772975481880,3.14317494,1942.8,1942.4,1.85102883]
[1772975483485,3.14317494,1942.8,1942.3,1.28823075]
[1772975483486,1.85632643,1942.7,1942.3,1.28822997]
[1772975485391,1.85632643,1942.6,1942.3,0.0011]
[1772975488790,1.85632643,1942.5,1942.3,0.0011]
[1772975489660,1.85632643,1942.7,1942.3,1.85212883]
[1772975491593,1.85632643,1942.7,1942.3,3.139239]
[1772975492790,1.82584417,1942.6,1942.4,0.0011]
[1772975492965,0.001,1942.5,1942.4,0.0011]
[1772975505702,1.82684417,1942.5,1942.4,0.0011]
[1772975508704,0.001,1942.5,1942.4,0.0011]
[1772975512105,1.82684417,1942.5,1942.4,0.0011]
[1772975513204,0.001,1942.5,1942.4,0.0011]
[1772975515204,1.82684417,1942.5,1942.4,0.0011]
[1772975515790,1.82684417,1942.5,1942.3,0.0011]
[1772975516913,3.11384899,1942.5,1942.3,0.0011]
[1772975517415,0.001,1942.4,1942.3,0.0011]
[1772975521487,0.001,1942.4,1942.3,1.66262324]
[1772975524322,1.75172034,1942.7,1942.4,1.72153991]
[1772975527527,1.75172034,1942.9,1942.4,1.72153991]
[1772975527831,1.7532592,1943.0,1942.6,1.72153991]
[1772975528610,1.7532592,1943.0,1942.7,3.0084087]
[1772975528918,1.7532592,1943.0,1942.7,1.72153991]
[1772975534163,3.03993564,1943.0,1942.7,1.72153991]
[1772975534738,1.7532592,1943.0,1942.7,1.72153991]
[1772975535172,1.75172034,1942.8,1942.5,1.72153991]
[1772975535468,1.75172034,1942.8,1942.3,0.0011]
[1772975537061,1.75172034,1942.6,1942.3,0.0011]
[1772975539365,1.75172034,1942.4,1942.3,0.0011]
[1772975541633,3.03878788,1942.4,1942.3,0.0011]
[1772975543947,1.75172034,1942.3,1942.2,0.0011]
[1772975546463,3.03885415,1942.3,1942.2,0.0011]
[1772975546666,1.75172034,1942.2,1941.9,0.0011]
[1772975547967,3.03885415,1942.3,1941.9,1.72263991]
[1772975549653,3.03885415,1942.3,1941.9,0.0011]
[1772975549654,1.75172034,1942.2,1941.9,0.0011]
[1772975550468,1.75172034,1942.2,1941.9,1.72263991]
[1772975550663,3.03885415,1942.3,1941.9,1.72263991]
[1772975551380,1.75172034,1942.2,1941.9,1.72263991]
[1772975552379,1.75172034,1942.2,1941.7,0.2652488]
[1772975552678,1.75172034,1942.2,1941.5,0.0011]
[1772975552875,1.75172034,1942.2,1942.0,0.0011]
[1772975553084,1.28726636,1942.1,1941.9,0.0011]
[1772975553281,1.59316367,1942.0,1941.5,0.0011]
[1772975553461,1.59316367,1942.0,1941.7,0.0011]
[1772975555285,1.59316367,1941.8,1941.7,0.0011]
[1772975556256,1.74898037,1941.7,1940.9,0.0011]
[1772975556591,1.74898037,1941.7,1940.9,0.00222851]
[1772975557287,1.74898037,1941.5,1940.9,0.00222851]
[1772975557977,1.74898037,1941.5,1941.0,0.00222542]
[1772975560169,3.03671087,1941.4,1941.0,0.00222542]
[1772975561364,1.74898037,1941.4,1941.0,0.00222542]
[1772975561573,1.28771327,1941.5,1941.0,0.00222542]
[1772975561794,3.03669364,1941.5,1941.0,0.00222542]
[1772975563067,1.74898037,1941.4,1941.0,0.00222542]
[1772975563597,1.74898037,1941.6,1941.0,0.00222542]
[1772975564899,1.74898037,1941.4,1941.1,0.01071521]
[1772975567816,1.74898037,1941.6,1941.1,0.01071521]
[1772975568721,1.74898037,1941.6,1941.1,0.0011]
[1772975568922,1.74898037,1941.6,1940.9,0.0011]
[1772975569094,1.74898037,1941.4,1940.7,0.01466495]
[1772975570697,1.74898037,1941.1,1940.7,0.01466495]
[1772975571246,1.74898037,1941.1,1940.6,0.0011]
[1772975571570,0.065536,1940.4,1938.0,0.00153886]
[1772975571704,1.75672555,1938.2,1937.1,5.16213167]
[1772975571894,1.75672555,1938.0,1937.1,1.29212788]
[1772975572094,1.75672555,1937.8,1937.2,0.00153886]
[1772975572401,1.75672555,1937.6,1937.1,0.00153886]
[1772975572594,3.04704813,1937.5,1937.2,0.00153886]
[1772975572791,1.75672555,1937.4,1937.1,0.00153886]
[1772975573316,1.75672555,1937.4,1937.2,0.00153886]
[1772975573512,1.75672555,1937.8,1937.0,0.00153886]
[1772975573712,1.75672555,1938.1,1937.1,3.05406568]
[1772975573911,1.25863241,1938.3,1937.2,0.00286354]
[1772975574602,1.75672555,1938.1,1937.2,0.00379586]
[1772975575430,1.75672555,1938.1,1936.4,2.2077349]
[1772975575431,0.065536,1937.8,1936.4,2.2077349]
[1772975575727,0.48713621,1938.1,1936.4,2.20773598]
[1772975575728,1.75595612,1937.5,1936.4,2.20773598]
[1772975576106,1.75595612,1937.5,1936.4,0.9166888]
[1772975576327,1.75595612,1937.3,1936.4,0.9166888]
[1772975576529,1.75595612,1937.3,1936.4,2.20773364]
[1772975576732,1.75595612,1937.1,1936.4,0.9166888]
[1772975577227,1.75595612,1937.1,1936.5,0.0011]
[1772975577416,0.21502099,1937.0,1936.0,0.00153886]
[1772975577731,0.21502099,1937.0,1936.4,0.0011]
[1772975577732,1.75595612,1936.5,1936.4,0.0011]
[1772975578204,1.75595612,1936.5,1936.2,0.0011]
[1772975578405,1.75595612,1936.5,1935.5,1.42131009]
[1772975579332,1.75595612,1936.4,1935.5,1.42131009]
[1772975579700,5.16336993,1936.8,1935.5,1.43112203]
[1772975579701,1.75595612,1936.8,1935.5,1.43112203]
[1772975580030,1.75595612,1936.2,1935.0,0.00153886]
[1772975580340,1.75595612,1935.8,1935.0,1.2935044]
[1772975580633,1.75595612,1935.8,1935.0,0.00153886]
[1772975580855,1.75595612,1935.7,1935.0,0.00153886]
[1772975583051,1.75595612,1936.2,1935.0,0.00153886]
[1772975584239,1.75595612,1936.2,1935.0,0.01633617]
[1772975584533,1.75595612,1936.5,1935.1,0.01479731]
[1772975585136,1.75595612,1936.5,1935.1,5.16742455]
[1772975585447,1.76374746,1936.8,1935.3,0.065536]
[1772975585608,1.76374746,1936.8,1935.4,1.128]
[1772975585807,1.76374746,1936.8,1935.5,0.065536]
[1772975586415,1.76374746,1936.8,1935.6,0.00155744]
[1772975586667,1.76374746,1936.8,1935.0,0.00153886]
[1772975586812,0.00153886,1937.0,1935.0,1.29348498]
[1772975586813,1.76374746,1936.3,1935.0,1.29348498]
[1772975587011,1.76374746,1936.1,1935.0,0.00153886]
[1772975588214,1.79125065,1935.9,1934.2,1.29252404]
[1772975588441,1.79048122,1935.7,1934.2,1.29252404]
[1772975589138,1.79048122,1935.5,1934.1,5.17028778]
[1772975589645,1.79048122,1935.5,1935.1,0.0011]
[1772975590635,1.79048122,1935.8,1935.1,0.0011]
[1772975591275,0.00153886,1936.0,1935.1,0.0011]
[1772975591447,1.79202008,1936.0,1935.1,0.0011]
[1772975591843,0.00153886,1936.0,1935.1,0.0011]
[1772975592066,1.79048122,1936.6,1935.1,0.0011]
[1772975592246,1.79048122,1936.5,1935.1,0.0011]
[1772975592446,1.79048122,1936.5,1935.1,0.066636]
[1772975592965,1.79048122,1936.5,1935.2,1.097]
[1772975593172,0.001,1936.7,1935.3,1.29178938]
[1772975593342,1.79048122,1936.6,1935.3,1.29178938]
[1772975593541,1.79048122,1936.6,1935.3,2.39878938]
[1772975594971,0.001,1936.7,1935.3,2.39878938]
[1772975595472,1.79048122,1936.6,1935.3,1.29178938]
[1772975597249,1.79048122,1936.6,1935.2,5.16715754]
[1772975597250,1.79048122,1936.5,1935.2,5.16715754]
[1772975597777,0.001,1936.7,1935.3,0.065536]
[1772975598002,1.79048122,1936.6,1935.3,0.065536]
[1772975598202,1.79048122,1936.6,1935.4,1.233]
[1772975598371,1.79048122,1936.6,1935.4,1.237]
[1772975598918,1.79048122,1936.6,1935.1,0.0011]
[1772975599280,1.79048122,1936.4,1935.1,0.0011]
[1772975602005,1.79048122,1936.3,1935.1,0.0011]
[1772975602394,1.79048122,1936.3,1935.4,0.0011]
[1772975603903,1.79048122,1936.3,1935.4,1.29282264]
[1772975605519,1.79048122,1936.2,1935.4,0.0011]
[1772975605726,1.29112547,1936.3,1935.1,0.0011]
[1772975605727,1.78993122,1936.0,1935.1,0.0011]
[1772975607519,1.78993122,1935.8,1935.1,0.0011]
[1772975607723,1.29152244,1935.7,1935.1,0.0011]
[1772975607901,1.78993122,1935.6,1935.1,0.0011]
[1772975610228,1.78993122,1935.4,1935.1,0.0011]
[1772975611426,1.78993122,1935.4,1934.0,0.00153886]
[1772975611602,1.78938122,1934.7,1934.0,0.00153886]
[1772975612216,1.78938122,1934.5,1934.0,0.00153886]
[1772975613042,1.78938122,1934.9,1934.0,0.00153886]
[1772975613618,1.78938122,1934.7,1934.0,0.00153886]
[1772975614329,1.78938122,1934.6,1934.0,0.00153886]
[1772975614712,1.78938122,1935.4,1934.1,0.0011]
[1772975616547,1.78938122,1935.2,1934.1,0.0011]
[1772975618827,0.5,1935.1,1934.1,1.26124396]
[1772975619023,1.78938122,1935.2,1934.1,1.26124396]
[1772975619252,1.78938122,1935.2,1934.2,1.201]
[1772975619548,1.78938122,1935.2,1934.3,1.21]
[1772975619750,1.78938122,1935.2,1934.1,1.26124396]
[1772975619954,1.78938122,1935.2,1934.3,1.217]
[1772975620253,1.78938122,1935.2,1934.1,0.0011]
[1772975620254,1.78938122,1935.1,1934.1,0.0011]
[1772975620562,1.78938122,1934.9,1934.1,1.29369086]
[1772975620766,1.78938122,1934.9,1934.1,2.52869086]
[1772975621568,1.78938122,1934.9,1934.2,1.25]
[1772975622957,1.78938122,1934.9,1934.1,1.29369086]
[1772975623150,1.78938122,1934.9,1934.2,6.44682887]
[1772975624569,1.78938122,1934.9,1934.2,5.16982887]
[1772975624863,1.78938122,1934.9,1934.3,1.299]
[1772975625241,1.78938122,1934.9,1934.1,0.0011]
[1772975625437,1.78938122,1934.9,1934.2,1.307]
[1772975625654,1.78938122,1934.9,1934.3,1.303]
[1772975626142,1.78938122,1935.8,1934.3,1.303]
[1772975626452,1.78938122,1935.8,1934.4,1.298]
[1772975626653,1.78938122,1935.4,1934.1,0.0011]
[1772975626867,1.78938122,1934.7,1934.1,0.0011]
[1772975627040,1.78938122,1934.7,1933.7,0.003]
[1772975627354,1.78883122,1934.3,1933.0,0.00153886]
[1772975628148,1.78883122,1934.3,1933.1,1.236]
[1772975629263,1.78883122,1934.3,1933.2,1.194]
[1772975629665,1.78883122,1934.3,1933.3,1.29312574]
[1772975629666,1.78883122,1934.1,1933.3,1.29312574]
[1772975629974,1.78883122,1934.6,1933.3,1.29312574]
[1772975630877,1.78883122,1934.6,1933.4,1.198]
[1772975631292,1.78883122,1934.6,1933.3,1.29312574]
[1772975631453,1.78883122,1934.6,1933.5,1.214]
[1772975631872,1.78883122,1934.4,1933.6,1.29292511]
[1772975632177,1.78883122,1934.4,1933.7,1.228]
[1772975632480,1.78883122,1934.4,1933.6,1.29292511]
[1772975632782,1.78883122,1934.4,1933.7,1.24]
[1772975633079,1.78883122,1934.4,1933.8,1.247]
[1772975633662,1.78883122,1934.4,1933.9,1.258]
[1772975633863,1.78883122,1934.4,1933.9,1.261]
[1772975634064,1.77749182,1934.3,1933.2,1.29319263]
[1772975634268,1.77749182,1934.3,1933.3,1.267]
[1772975634569,1.77749182,1934.3,1933.3,1.271]
[1772975634768,1.77749182,1934.3,1933.2,1.29319263]
[1772975634977,1.77749182,1934.3,1933.2,2.57019263]
[1772975635170,1.77749182,1934.3,1933.0,1.29480614]
[1772975635477,1.77749182,1934.3,1933.0,2.57780614]
[1772975636083,1.77749182,1934.1,1933.0,2.57780614]
[1772975636283,1.77749182,1934.1,1933.1,1.29]
[1772975636582,1.77749182,1934.1,1933.1,1.294]
[1772975637085,1.77749182,1934.1,1933.0,1.29480614]
[1772975637284,1.77749182,1934.1,1933.1,1.302]
[1772975637461,1.77749182,1934.1,1933.0,1.29480614]
[1772975637659,1.77749182,1934.1,1933.0,2.60380614]
[1772975637860,1.77749182,1934.1,1933.0,1.29480614]
[1772975638089,1.77749182,1933.8,1933.1,1.312]
[1772975638458,1.77749182,1933.8,1933.1,1.3131]
[1772975639500,1.77749182,1933.8,1933.2,1.277]
[1772975639680,1.77749182,1933.8,1933.2,1.274]
[1772975640463,5.17111695,1934.2,1933.2,1.274]
[1772975640464,0.001,1934.2,1933.3,1.29312574]
[1772975641379,1.77749182,1934.1,1933.4,1.257]
[1772975641774,1.77749182,1934.1,1933.3,1.29312574]
[1772975641957,1.77749182,1934.1,1933.4,1.265]
[1772975642374,1.77749182,1934.1,1933.5,1.29299198]
[1772975643220,0.001,1934.2,1933.5,1.29299198]
[1772975643425,1.77749182,1934.1,1933.5,1.29299198]
[1772975643891,1.77749182,1934.1,1933.5,2.58699198]
[1772975644817,3.07014094,1934.1,1933.5,1.29299198]
[1772975645020,1.77749182,1934.0,1933.5,1.29299198]
[1772975645221,1.77749182,1934.0,1933.5,2.60399198]
[1772975645415,1.77749182,1934.0,1933.5,1.313]
[1772975645717,1.77749182,1934.0,1933.5,1.315]
[1772975646317,1.77749182,1934.0,1933.4,1.29302294]
[1772975646527,1.77749182,1934.0,1933.5,1.223]
[1772975647136,1.77749182,1934.0,1933.6,1.33]
[1772975647517,1.77749182,1933.9,1933.3,1.29305886]
[1772975648028,1.77749182,1933.9,1933.4,1.337]
[1772975648541,1.77749182,1933.9,1933.3,1.29305886]
[1772975648739,1.77749182,1933.9,1933.5,1.343]
[1772975649336,5.17122225,1934.2,1933.5,1.343]
[1772975649337,0.001,1934.2,1933.6,1.29292511]
[1772975649543,1.77849182,1934.2,1933.6,1.29292511]
[1772975649838,1.77849182,1934.2,1933.7,1.35]
[1772975650038,1.77849182,1934.2,1933.6,1.29292511]
[1772975650217,1.77849182,1934.2,1933.7,1.354]
[1772975650422,1.77849182,1934.2,1933.8,1.355]
[1772975650633,1.77849182,1934.2,1933.7,1.357]
[1772975650832,1.77849182,1934.2,1933.8,1.357]
[1772975651013,1.77849182,1934.2,1933.9,1.358]
[1772975651348,1.77849182,1934.0,1933.9,1.29272454]
[1772975651650,1.77849182,1934.0,1933.6,2.6500132]
[1772975651949,0.001,1934.0,1933.6,2.6500132]
[1772975653541,0.001,1934.0,1933.6,1.2940132]
[1772975653750,0.001,1934.0,1933.7,1.369]
[1772975655241,0.001,1934.0,1933.6,1.2940132]
[1772975655443,1.77749182,1934.7,1933.6,1.2940132]
[1772975655648,1.77749182,1934.6,1933.7,1.378]
[1772975656632,0.001,1934.8,1933.7,1.378]
[1772975657024,0.001,1934.8,1933.6,0.0011]
[1772975657025,0.001,1934.8,1933.8,1.375]
[1772975657629,1.7662127,1934.8,1933.9,1.372]
[1772975658066,1.7662127,1934.8,1933.6,0.0011]
[1772975658242,1.7662127,1934.8,1934.0,1.374]
[1772975658930,0.001,1934.8,1934.1,1.358]
[1772975659253,0.001,1934.8,1933.9,1.308481]
[1772975659423,0.001,1934.8,1934.0,1.349]
[1772975659750,0.001,1934.8,1934.1,2.63959086]
[1772975661515,0.001,1934.8,1934.2,1.358]
[1772975661815,1.7662127,1934.8,1934.3,1.29245721]
[1772975662021,0.001,1934.8,1934.3,1.29245721]
[1772975663631,0.001,1934.7,1934.3,1.29245721]
[1772975664433,0.001,1934.7,1934.4,1.373]
[1772975664746,0.001,1934.7,1934.3,1.29245721]
[1772975664952,0.001,1934.7,1934.4,1.376]
[1772975665751,0.001,1934.7,1934.5,1.29232359]
[1772975667039,1.56577414,1935.0,1934.6,1.384]
[1772975667852,1.56577414,1935.0,1934.7,1.29219]
[1772975668069,0.00153886,1935.0,1934.7,1.29219]
[1772975670835,0.00153886,1935.0,1934.8,1.396]
[1772975671158,1.56423528,1935.9,1934.7,1.29219]
[1772975671346,1.56423528,1935.9,1934.8,3.099831]
[1772975671654,1.29286892,1936.0,1934.6,1.29220949]
[1772975671655,1.56423528,1935.7,1934.6,1.29220949]
[1772975671855,1.56423528,1935.5,1934.8,1.2921182]
[1772975672059,1.56423528,1935.5,1934.9,1.399]
[1772975673131,1.56423528,1935.5,1935.0,1.401]
[1772975673534,2.84898086,1935.7,1935.0,1.401]
[1772975673730,1.55745463,1935.7,1935.0,1.401]
[1772975673935,1.55745463,1935.7,1935.1,1.29192289]
[1772975674767,2.85031894,1936.0,1935.2,1.404]
[1772975674945,2.85032203,1936.0,1935.2,1.404]
[1772975675344,1.55745463,1935.7,1934.5,1.29225679]
[1772975675543,0.001,1935.4,1934.7,1.65241083]
[1772975675943,0.00153886,1936.0,1935.0,1.65241083]
[1772975676263,0.00153886,1936.0,1935.2,1.65241083]
[1772975676636,1.29286919,1936.0,1935.3,1.397]
[1772975676839,1.55745463,1935.9,1935.3,1.397]
[1772975677041,1.55745463,1935.9,1935.4,1.397]
[1772975677460,1.55745463,1935.9,1935.5,1.398]
[1772975677767,1.55745463,1935.9,1935.5,1.399]
[1772975678138,2.84885101,1935.9,1935.2,1.29185613]
[1772975678344,2.84885101,1935.9,1935.3,1.4]
[1772975678543,2.84885101,1935.9,1935.2,1.29185613]
[1772975678744,2.84885101,1935.9,1935.3,1.401]
[1772975679559,1.55745463,1935.9,1935.3,1.401]
[1772975679755,1.29291658,1936.0,1935.3,1.401]
[1772975680070,0.00153886,1936.0,1935.3,3.05341083]
[1772975680265,0.00153886,1936.0,1935.4,1.29172264]
[1772975680754,0.00153886,1936.0,1935.5,1.404]
[1772975681966,1.55899349,1936.0,1935.6,1.406]
[1772975682480,1.55899349,1936.0,1935.6,2.6975687]
[1772975682642,2.85033022,1936.0,1935.6,1.406]
[1772975682844,1.55899349,1936.0,1935.6,2.69757764]
[1772975683044,1.55899349,1936.0,1935.6,1.406]
[1772975683343,2.8503249,1936.0,1935.6,2.69757122]
[1772975683682,2.8503249,1936.0,1935.6,2.69758704]
[1772975684085,1.55899349,1936.0,1935.6,2.69758704]
[1772975684246,0.00153886,1936.0,1935.6,2.69758704]
[1772975684858,0.00153886,1936.0,1935.7,1.409]
[1772975685083,1.55899349,1936.0,1935.1,2.94428518]
[1772975685269,1.55745463,1935.8,1935.2,1.409]
[1772975685472,1.55745463,1935.8,1935.3,1.403]
[1772975687291,2.84897707,1935.7,1935.3,1.406]
[1772975688150,1.55745463,1935.6,1935.2,1.407]
[1772975688587,1.55745463,1935.6,1935.1,0.0011]
[1772975690305,1.55745463,1935.6,1934.2,6.34]
[1772975690459,1.55745463,1934.0,1932.3,1.65241083]
[1772975690654,2.03629432,1933.0,1932.4,19.020536]
[1772975690870,1.424,1934.0,1932.4,1.41]
[1772975690871,1.55745463,1933.2,1932.4,1.41]
[1772975691078,1.903791,1933.1,1932.5,17.610536]
[1772975691360,1.55745463,1933.0,1932.4,16.29689385]
[1772975691907,1.55745463,1933.0,1932.0,0.00153886]
[1772975692111,1.55745463,1933.0,1932.1,16.29689385]
[1772975692279,1.55745463,1932.8,1932.1,17.5908108]
[1772975692484,1.55745463,1932.8,1932.2,16.14189385]
[1772975692789,1.55745463,1932.8,1932.1,16.14189385]
[1772975692987,1.55745463,1932.6,1932.1,16.14189385]
[1772975693189,1.55745463,1932.6,1932.0,0.00153886]
[1772975694218,1.55745463,1932.4,1932.0,0.00153886]
[1772975694400,1.55745463,1932.4,1931.7,0.154392]
[1772975694579,1.55745463,1932.4,1931.7,1.44858374]
[1772975694780,1.55745463,1932.4,1931.7,0.154392]
[1772975696309,1.55745463,1932.2,1931.7,0.154392]
[1772975696821,1.55745463,1932.2,1931.6,0.92922197]
[1772975697320,1.55745463,1932.6,1931.6,1.29425183]
[1772975698017,2.85090972,1932.9,1931.6,2.94666266]
[1772975698233,1.55745463,1932.8,1931.6,2.94666266]
[1772975698434,2.85091535,1932.8,1931.6,2.94666266]
[1772975698596,1.55745463,1932.7,1931.7,1.361]
[1772975698915,1.55745463,1932.7,1931.8,1.362]
[1772975699120,1.29343884,1932.9,1931.8,3.01441083]
[1772975699421,2.99733116,1933.0,1931.9,1.65241083]
[1772975699716,1.70399348,1933.0,1932.0,1.367]
[1772975700087,0.14653885,1933.0,1932.0,3.01941083]
[1772975700310,0.14653885,1933.0,1932.1,1.65241083]
[1772975700513,0.14653885,1933.0,1932.3,1.65241083]
[1772975700725,1.55745463,1933.9,1932.3,1.65241083]
[1772975701217,1.55745463,1933.8,1932.5,1.65241083]
[1772975701623,1.55745463,1933.8,1932.6,1.376]
[1772975701826,1.55745463,1933.8,1932.6,3.02841083]
[1772975702034,5.17238331,1934.0,1932.7,1.65241083]
[1772975702035,1.29423779,1934.0,1932.7,1.65241083]
[1772975702241,0.00153886,1934.0,1932.7,1.65241083]
[1772975702522,1.29420952,1934.0,1932.7,1.65241083]
[1772975702823,2.36267153,1934.0,1932.8,5.03967022]
[1772975703710,2.36267153,1934.0,1932.9,2.36420996]
[1772975704420,2.36267153,1934.0,1932.9,1.388]
[1772975704721,1.29212321,1934.8,1933.1,2.35126958]